[Event "Titled Tuesday Blitz November 14 Late 2023"]
[White "Chylewski, Patryk"]
[Black "Sokolovsky, Yahli"]
[WhiteFideId "1186191"]
[BlackFideId "2820242"]
[WhiteElo "2554"]
[BlackElo "2769"]
[Result "1-0"]
[Round "6"]
[TimeControl "180+1"]
[Date "2023.11.14"]
[WhiteClock "0:00:04"]
[BlackClock "0:00:07"]
[Board "35"]

1. Nf3 {[%clk 0:02:57]}  g6 {[%clk 0:03:00]} 2. d4 {[%clk 0:02:56]}  Bg7 {[%clk 0:03:00]} 3. c4 {[%clk 0:02:57]}  d6 {[%clk 0:03:00]} 4. Nc3 {[%clk 0:02:57]}  Nf6 {[%clk 0:02:47]} 5. g3 {[%clk 0:02:51]}  O-O {[%clk 0:02:43]} 6. Bg2 {[%clk 0:02:51]}  Nc6 {[%clk 0:02:43]} 7. O-O {[%clk 0:02:51]}  e5 {[%clk 0:02:43]} 8. dxe5 {[%clk 0:02:42]}  Nxe5 {[%clk 0:02:42]} 9. Nxe5 {[%clk 0:02:29]}  dxe5 {[%clk 0:02:43]} 10. Qxd8 {[%clk 0:02:14]}  Rxd8 {[%clk 0:02:44]} 11. Bg5 {[%clk 0:02:14]}  Rd7 {[%clk 0:02:38]} 12. Nd5 {[%clk 0:01:31]}  Nxd5 {[%clk 0:02:15]} 13. cxd5 {[%clk 0:01:32]}  b6 {[%clk 0:02:01]} 14. Rac1 {[%clk 0:00:55]}  Bb7 {[%clk 0:01:59]} 15. e4 {[%clk 0:00:55]}  Rc8 {[%clk 0:01:57]} 16. Bh3 {[%clk 0:00:53]}  f5 {[%clk 0:01:13]} 17. exf5 {[%clk 0:00:54]}  Rxd5 {[%clk 0:01:07]} 18. f6 {[%clk 0:00:51]}  Bf8 {[%clk 0:00:43]} 19. Be6+ {[%clk 0:00:47]}  Kh8 {[%clk 0:00:42]} 20. Bxc8 {[%clk 0:00:45]}  Bxc8 {[%clk 0:00:43]} 21. Rxc7 {[%clk 0:00:45]}  Bh3 {[%clk 0:00:42]} 22. Re1 {[%clk 0:00:31]}  e4 {[%clk 0:00:43]} 23. Rxa7 {[%clk 0:00:20]}  Kg8 {[%clk 0:00:41]} 24. Bc1 {[%clk 0:00:14]}  Bb4 {[%clk 0:00:40]} 25. f7+ {[%clk 0:00:05]}  Kg7 {[%clk 0:00:36]} 26. a3 {[%clk 0:00:05]}  Bc5 {[%clk 0:00:18]} 27. b4 {[%clk 0:00:04]}  Bf8 {[%clk 0:00:17]} 28. Bb2+ {[%clk 0:00:04]}  Kh6 {[%clk 0:00:17]} 29. Ra8 {[%clk 0:00:04]}  Rd2 {[%clk 0:00:05]} 30. Rxf8 {[%clk 0:00:03]}  e3 {[%clk 0:00:06]} 31. fxe3 {[%clk 0:00:02]}  Rg2+ {[%clk 0:00:05]} 32. Kh1 {[%clk 0:00:02]}  Rxb2 {[%clk 0:00:06]} 33. Rg8 {[%clk 0:00:02]}  Bg2+ {[%clk 0:00:04]} 34. Kg1 {[%clk 0:00:02]}  Bd5 {[%clk 0:00:05]} 35. f8=Q+ {[%clk 0:00:02]}  Kh5 {[%clk 0:00:06]} 36. Qf4 {[%clk 0:00:02]}  Rg2+ {[%clk 0:00:06]} 37. Kf1 {[%clk 0:00:03]}  Rxh2 {[%clk 0:00:07]} 38. g4+ {[%clk 0:00:03]}  Kh4 {[%clk 0:00:07]} 39. Qxh2+ {[%clk 0:00:03]}  Kxg4 {[%clk 0:00:07]} 40. Qg1+ {[%clk 0:00:04]} 1-0


[Site "https://www.chess.com"]

[Event "Titled Tuesday Blitz November 14 Late 2023"]
[White "Solon, Nathan"]
[Black "Ferreira, Vitor Hugo Vieira"]
[WhiteFideId "2017229"]
[BlackFideId "2119765"]
[WhiteElo "2683"]
[BlackElo "2528"]
[Result "1-0"]
[Round "6"]
[TimeControl "180+1"]
[Date "2023.11.14"]
[WhiteClock "0:00:41"]
[BlackClock "0:00:07"]
[Board "37"]

1. d4 {[%clk 0:03:00]}  d5 {[%clk 0:02:58]} 2. Bf4 {[%clk 0:03:00]}  Nf6 {[%clk 0:02:50]} 3. e3 {[%clk 0:03:00]}  e6 {[%clk 0:02:39]} 4. Nf3 {[%clk 0:03:00]}  c5 {[%clk 0:02:34]} 5. Nbd2 {[%clk 0:03:00]}  Nc6 {[%clk 0:02:27]} 6. c3 {[%clk 0:02:56]}  Nh5 {[%clk 0:02:15]} 7. Bg5 {[%clk 0:02:55]}  Qc7 {[%clk 0:02:04]} 8. Bd3 {[%clk 0:02:44]}  Be7 {[%clk 0:01:55]} 9. Bxe7 {[%clk 0:02:30]}  Qxe7 {[%clk 0:01:55]} 10. Ne5 {[%clk 0:02:29]}  Nf6 {[%clk 0:01:49]} 11. f4 {[%clk 0:02:29]}  O-O {[%clk 0:01:44]} 12. O-O {[%clk 0:02:29]}  g6 {[%clk 0:01:40]} 13. Qe1 {[%clk 0:02:17]}  Nd7 {[%clk 0:01:40]} 14. Qg3 {[%clk 0:02:11]}  f5 {[%clk 0:01:33]} 15. h4 {[%clk 0:02:05]}  Nf6 {[%clk 0:01:33]} 16. Qh3 {[%clk 0:01:52]}  Bd7 {[%clk 0:01:21]} 17. Ndf3 {[%clk 0:01:52]}  Be8 {[%clk 0:01:11]} 18. g4 {[%clk 0:01:47]}  Ne4 {[%clk 0:01:06]} 19. Bxe4 {[%clk 0:01:39]}  fxe4 {[%clk 0:01:06]} 20. Nxc6 {[%clk 0:01:39]}  bxc6 {[%clk 0:01:04]} 21. Ne5 {[%clk 0:01:39]}  cxd4 {[%clk 0:01:01]} 22. cxd4 {[%clk 0:01:35]}  c5 {[%clk 0:01:02]} 23. dxc5 {[%clk 0:01:33]}  Qxc5 {[%clk 0:01:01]} 24. Rac1 {[%clk 0:01:33]}  Qb6 {[%clk 0:00:58]} 25. Rf2 {[%clk 0:01:28]}  d4 {[%clk 0:00:49]} 26. Nc4 {[%clk 0:01:22]}  Qc5 {[%clk 0:00:47]} 27. exd4 {[%clk 0:01:22]}  Qxd4 {[%clk 0:00:46]} 28. Qe3 {[%clk 0:01:22]}  Qd8 {[%clk 0:00:42]} 29. g5 {[%clk 0:01:12]}  Bc6 {[%clk 0:00:41]} 30. Ne5 {[%clk 0:01:09]}  Bd5 {[%clk 0:00:41]} 31. Ng4 {[%clk 0:01:06]}  Bxa2 {[%clk 0:00:35]} 32. Nh6+ {[%clk 0:00:57]}  Kg7 {[%clk 0:00:19]} 33. Qc3+ {[%clk 0:00:58]}  Rf6 {[%clk 0:00:14]} 34. Ng4 {[%clk 0:00:56]}  e3 {[%clk 0:00:11]} 35. gxf6+ {[%clk 0:00:52]}  Kf7 {[%clk 0:00:11]} 36. Nh6+ {[%clk 0:00:44]}  Kf8 {[%clk 0:00:10]} 37. Qc5+ {[%clk 0:00:44]}  Ke8 {[%clk 0:00:07]} 38. f7+ {[%clk 0:00:41]} 1-0


[Site "https://www.chess.com"]

[Event "Titled Tuesday Blitz November 14 Late 2023"]
[White "Bjelobrk, Igor"]
[Black "Omariev, Maksim"]
[WhiteFideId "4300726"]
[BlackFideId "4193423"]
[WhiteElo "2674"]
[BlackElo "2521"]
[Result "1-0"]
[Round "6"]
[TimeControl "180+1"]
[Date "2023.11.14"]
[WhiteClock "0:00:29"]
[BlackClock "0:00:00"]
[Board "38"]

1. d4 {[%clk 0:02:58]}  d5 {[%clk 0:02:53]} 2. c4 {[%clk 0:02:57]}  e6 {[%clk 0:02:50]} 3. Nf3 {[%clk 0:02:57]}  Nf6 {[%clk 0:02:46]} 4. g3 {[%clk 0:02:56]}  Be7 {[%clk 0:02:46]} 5. Bg2 {[%clk 0:02:55]}  O-O {[%clk 0:02:46]} 6. O-O {[%clk 0:02:55]}  a6 {[%clk 0:02:46]} 7. Qc2 {[%clk 0:02:54]}  dxc4 {[%clk 0:02:46]} 8. a4 {[%clk 0:02:52]}  Nc6 {[%clk 0:02:45]} 9. Qxc4 {[%clk 0:02:40]}  Nb4 {[%clk 0:02:43]} 10. Rd1 {[%clk 0:02:30]}  b5 {[%clk 0:02:41]} 11. Qb3 {[%clk 0:02:27]}  bxa4 {[%clk 0:02:25]} 12. Qxa4 {[%clk 0:02:26]}  Bb7 {[%clk 0:02:12]} 13. Nc3 {[%clk 0:02:23]}  Nfd5 {[%clk 0:02:03]} 14. Ne5 {[%clk 0:02:15]}  Nb6 {[%clk 0:01:58]} 15. Qb3 {[%clk 0:02:08]}  Bxg2 {[%clk 0:01:53]} 16. Kxg2 {[%clk 0:02:08]}  Bd6 {[%clk 0:01:45]} 17. Nf3 {[%clk 0:01:58]}  Qe7 {[%clk 0:01:33]} 18. e4 {[%clk 0:01:54]}  c5 {[%clk 0:01:27]} 19. e5 {[%clk 0:01:45]}  Bc7 {[%clk 0:01:23]} 20. dxc5 {[%clk 0:01:44]}  Qxc5 {[%clk 0:01:20]} 21. Be3 {[%clk 0:01:44]}  Qc4 {[%clk 0:01:08]} 22. Ra3 {[%clk 0:01:36]}  Qxb3 {[%clk 0:00:46]} 23. Rxb3 {[%clk 0:01:37]}  N6d5 {[%clk 0:00:47]} 24. Bc5 {[%clk 0:01:22]}  Rfb8 {[%clk 0:00:44]} 25. Bxb4 {[%clk 0:01:21]}  Rxb4 {[%clk 0:00:34]} 26. Rxb4 {[%clk 0:01:21]}  Nxb4 {[%clk 0:00:35]} 27. Rd7 {[%clk 0:01:21]}  Rc8 {[%clk 0:00:32]} 28. Ng5 {[%clk 0:00:52]}  Bxe5 {[%clk 0:00:26]} 29. Nxf7 {[%clk 0:00:52]}  Bxc3 {[%clk 0:00:22]} 30. bxc3 {[%clk 0:00:53]}  Rxc3 {[%clk 0:00:21]} 31. Ng5 {[%clk 0:00:53]}  Rc8 {[%clk 0:00:03]} 32. Nxe6 {[%clk 0:00:50]}  g6 {[%clk 0:00:03]} 33. Ng5 {[%clk 0:00:45]}  h6 {[%clk 0:00:02]} 34. Ne4 {[%clk 0:00:45]}  Ra8 {[%clk 0:00:01]} 35. Nf6+ {[%clk 0:00:44]}  Kf8 {[%clk 0:00:02]} 36. Rh7 {[%clk 0:00:44]}  Rd8 {[%clk 0:00:02]} 37. Nd7+ {[%clk 0:00:42]}  Ke8 {[%clk 0:00:02]} 38. Nf6+ {[%clk 0:00:40]}  Kf8 {[%clk 0:00:01]} 39. h4 {[%clk 0:00:35]}  a5 {[%clk 0:00:02]} 40. g4 {[%clk 0:00:31]}  a4 {[%clk 0:00:02]} 41. Nd7+ {[%clk 0:00:29]}  Ke8 {[%clk 0:00:02]} 42. Nf6+ {[%clk 0:00:30]}  Kf8 {[%clk 0:00:00]} 43. Ra7 {[%clk 0:00:29]} 1-0


[Site "https://www.chess.com"]

[Event "Titled Tuesday Blitz November 14 Late 2023"]
[White "Sivakumar, Shaaketh"]
[Black "Avalos Parra, Joao"]
[WhiteFideId "30940176"]
[BlackFideId "3402541"]
[WhiteElo "2650"]
[BlackElo "2354"]
[Result "1-0"]
[Round "6"]
[TimeControl "180+1"]
[Date "2023.11.14"]
[WhiteClock "0:01:35"]
[BlackClock "0:00:00"]
[Board "39"]

1. Nf3 {[%clk 0:03:00]}  d5 {[%clk 0:02:59]} 2. g3 {[%clk 0:02:57]}  Nf6 {[%clk 0:02:59]} 3. Bg2 {[%clk 0:02:57]}  e6 {[%clk 0:03:00]} 4. c4 {[%clk 0:02:58]}  d4 {[%clk 0:03:00]} 5. e3 {[%clk 0:02:57]}  c5 {[%clk 0:02:59]} 6. b4 {[%clk 0:02:57]}  dxe3 {[%clk 0:02:44]} 7. fxe3 {[%clk 0:02:57]}  cxb4 {[%clk 0:02:45]} 8. d4 {[%clk 0:02:58]}  Be7 {[%clk 0:02:45]} 9. O-O {[%clk 0:02:54]}  a5 {[%clk 0:02:13]} 10. a3 {[%clk 0:02:54]}  O-O {[%clk 0:02:13]} 11. axb4 {[%clk 0:02:54]}  Bxb4 {[%clk 0:02:13]} 12. Ba3 {[%clk 0:02:55]}  Nc6 {[%clk 0:02:12]} 13. Qb3 {[%clk 0:02:47]}  Re8 {[%clk 0:02:04]} 14. Nc3 {[%clk 0:02:46]}  Bd7 {[%clk 0:01:46]} 15. Nb5 {[%clk 0:02:44]}  Qb8 {[%clk 0:01:37]} 16. Ne5 {[%clk 0:02:31]}  Nxe5 {[%clk 0:01:36]} 17. Bxb4 {[%clk 0:02:31]}  Nxc4 {[%clk 0:01:27]} 18. Qxc4 {[%clk 0:02:25]}  Bxb5 {[%clk 0:01:22]} 19. Qxb5 {[%clk 0:02:26]}  axb4 {[%clk 0:01:22]} 20. Rxa8 {[%clk 0:02:23]}  Qxa8 {[%clk 0:01:22]} 21. Qxb4 {[%clk 0:02:21]}  Nd5 {[%clk 0:01:17]} 22. Qb3 {[%clk 0:02:18]}  Rd8 {[%clk 0:01:07]} 23. e4 {[%clk 0:02:13]}  Nf6 {[%clk 0:00:36]} 24. d5 {[%clk 0:02:09]}  exd5 {[%clk 0:00:35]} 25. e5 {[%clk 0:02:10]}  Ng4 {[%clk 0:00:14]} 26. Bxd5 {[%clk 0:02:03]}  Nxe5 {[%clk 0:00:12]} 27. Bxf7+ {[%clk 0:02:02]}  Kh8 {[%clk 0:00:12]} 28. Bd5 {[%clk 0:02:01]}  Qa7+ {[%clk 0:00:11]} 29. Kh1 {[%clk 0:02:01]}  b6 {[%clk 0:00:06]} 30. Bg2 {[%clk 0:02:00]}  h6 {[%clk 0:00:06]} 31. Qe6 {[%clk 0:02:01]}  Qb8 {[%clk 0:00:02]} 32. Rb1 {[%clk 0:01:59]}  b5 {[%clk 0:00:02]} 33. h3 {[%clk 0:01:56]}  Re8 {[%clk 0:00:02]} 34. Qd5 {[%clk 0:01:55]}  b4 {[%clk 0:00:03]} 35. Rb3 {[%clk 0:01:50]}  Rd8 {[%clk 0:00:02]} 36. Qe4 {[%clk 0:01:49]}  h5 {[%clk 0:00:02]} 37. Rxb4 {[%clk 0:01:48]}  Qd6 {[%clk 0:00:02]} 38. Kh2 {[%clk 0:01:49]}  Nf7 {[%clk 0:00:02]} 39. Qh4 {[%clk 0:01:48]}  Nh6 {[%clk 0:00:02]} 40. Rb5 {[%clk 0:01:46]}  Rf8 {[%clk 0:00:02]} 41. Rxh5 {[%clk 0:01:46]}  Rf6 {[%clk 0:00:03]} 42. Rg5 {[%clk 0:01:44]}  Rg6 {[%clk 0:00:03]} 43. Rd5 {[%clk 0:01:42]}  Qf6 {[%clk 0:00:02]} 44. Qe4 {[%clk 0:01:38]}  Nf7 {[%clk 0:00:01]} 45. Qe8+ {[%clk 0:01:37]}  Kh7 {[%clk 0:00:02]} 46. Qe4 {[%clk 0:01:37]}  Ng5 {[%clk 0:00:02]} 47. Qh4+ {[%clk 0:01:35]}  Rh6 {[%clk 0:00:00]} 48. Qxg5 {[%clk 0:01:35]} 1-0


[Site "https://www.chess.com"]

[Event "Titled Tuesday Blitz November 14 Late 2023"]
[White "Ghasi, Ameet K"]
[Black "Pinheiro, Iung Alicio de O."]
[WhiteFideId "409200"]
[BlackFideId "2104350"]
[WhiteElo "2796"]
[BlackElo "2558"]
[Result "1-0"]
[Round "6"]
[TimeControl "180+1"]
[Date "2023.11.14"]
[WhiteClock "0:00:17"]
[BlackClock "0:00:00"]
[Board "42"]

1. b3 {[%clk 0:03:00]}  e5 {[%clk 0:02:54]} 2. Bb2 {[%clk 0:03:01]}  Nc6 {[%clk 0:02:54]} 3. e4 {[%clk 0:03:01]}  Bc5 {[%clk 0:02:49]} 4. c3 {[%clk 0:02:59]}  d6 {[%clk 0:02:45]} 5. d4 {[%clk 0:02:58]}  Bb6 {[%clk 0:02:42]} 6. Bb5 {[%clk 0:02:55]}  Bd7 {[%clk 0:02:39]} 7. Ne2 {[%clk 0:02:54]}  Nf6 {[%clk 0:02:36]} 8. Nd2 {[%clk 0:02:52]}  a6 {[%clk 0:02:34]} 9. Bxc6 {[%clk 0:02:51]}  Bxc6 {[%clk 0:02:32]} 10. d5 {[%clk 0:02:50]}  Bb5 {[%clk 0:02:20]} 11. c4 {[%clk 0:02:49]}  Bd7 {[%clk 0:02:20]} 12. h3 {[%clk 0:02:48]}  O-O {[%clk 0:02:11]} 13. g4 {[%clk 0:02:47]}  Ba5 {[%clk 0:02:03]} 14. Ng3 {[%clk 0:02:44]}  c6 {[%clk 0:01:58]} 15. O-O {[%clk 0:02:43]}  cxd5 {[%clk 0:01:57]} 16. cxd5 {[%clk 0:02:44]}  Bb5 {[%clk 0:01:47]} 17. Re1 {[%clk 0:02:43]}  g6 {[%clk 0:01:47]} 18. Re3 {[%clk 0:02:40]}  Ne8 {[%clk 0:01:33]} 19. a4 {[%clk 0:02:39]}  Bd7 {[%clk 0:01:29]} 20. Nc4 {[%clk 0:02:39]}  Bb4 {[%clk 0:01:28]} 21. Bc3 {[%clk 0:02:08]}  Bc5 {[%clk 0:01:24]} 22. Rf3 {[%clk 0:02:07]}  b5 {[%clk 0:01:24]} 23. Ne3 {[%clk 0:02:01]}  Rc8 {[%clk 0:01:21]} 24. Qd2 {[%clk 0:01:58]}  Qh4 {[%clk 0:01:15]} 25. Kg2 {[%clk 0:01:52]}  Ng7 {[%clk 0:01:11]} 26. axb5 {[%clk 0:01:41]}  axb5 {[%clk 0:01:11]} 27. Rh1 {[%clk 0:01:41]}  Kh8 {[%clk 0:01:02]} 28. Bb4 {[%clk 0:01:28]}  Rc7 {[%clk 0:00:47]} 29. Bxc5 {[%clk 0:01:22]}  Rxc5 {[%clk 0:00:48]} 30. Qa5 {[%clk 0:01:12]}  h5 {[%clk 0:00:34]} 31. Qb6 {[%clk 0:01:10]}  Qe7 {[%clk 0:00:15]} 32. gxh5 {[%clk 0:01:03]}  f5 {[%clk 0:00:15]} 33. h6 {[%clk 0:00:56]}  Nh5 {[%clk 0:00:11]} 34. Nxh5 {[%clk 0:00:54]}  gxh5 {[%clk 0:00:12]} 35. exf5 {[%clk 0:00:54]}  e4 {[%clk 0:00:10]} 36. Rg3 {[%clk 0:00:52]}  h4 {[%clk 0:00:10]} 37. Rg7 {[%clk 0:00:50]}  Qe5 {[%clk 0:00:05]} 38. Rxd7 {[%clk 0:00:29]}  Rc2 {[%clk 0:00:05]} 39. Nxc2 {[%clk 0:00:27]}  Qxf5 {[%clk 0:00:03]} 40. Qd4+ {[%clk 0:00:26]}  Rf6 {[%clk 0:00:02]} 41. Rxd6 {[%clk 0:00:21]}  Qf3+ {[%clk 0:00:00]} 42. Kg1 {[%clk 0:00:17]} 1-0


[Site "https://www.chess.com"]

[Event "Titled Tuesday Blitz November 14 Late 2023"]
[White "mind1mover"]
[Black "Kuznecovs, Nikita"]
[BlackFideId "11604557"]
[WhiteElo "2796"]
[BlackElo "2555"]
[Result "1-0"]
[Round "6"]
[TimeControl "180+1"]
[Date "2023.11.14"]
[WhiteClock "0:00:23"]
[BlackClock "0:00:06"]
[Board "43"]

1. d4 {[%clk 0:03:00]}  Nf6 {[%clk 0:02:59]} 2. c4 {[%clk 0:03:01]}  g6 {[%clk 0:02:55]} 3. Nc3 {[%clk 0:02:59]}  Bg7 {[%clk 0:02:56]} 4. e4 {[%clk 0:02:59]}  d6 {[%clk 0:02:56]} 5. Be2 {[%clk 0:03:00]}  O-O {[%clk 0:02:55]} 6. Be3 {[%clk 0:03:00]}  e5 {[%clk 0:02:49]} 7. d5 {[%clk 0:03:00]}  Nbd7 {[%clk 0:02:36]} 8. g4 {[%clk 0:02:59]}  Nc5 {[%clk 0:02:32]} 9. f3 {[%clk 0:02:59]}  a5 {[%clk 0:02:32]} 10. h4 {[%clk 0:02:58]}  h5 {[%clk 0:02:28]} 11. g5 {[%clk 0:02:56]}  Ne8 {[%clk 0:02:23]} 12. Nh3 {[%clk 0:02:54]}  c6 {[%clk 0:02:20]} 13. dxc6 {[%clk 0:02:51]}  Qb6 {[%clk 0:02:02]} 14. Nd5 {[%clk 0:02:48]}  Qxb2 {[%clk 0:01:59]} 15. Rb1 {[%clk 0:02:47]}  Qxa2 {[%clk 0:01:54]} 16. Bxc5 {[%clk 0:02:44]}  dxc5 {[%clk 0:01:40]} 17. cxb7 {[%clk 0:02:34]}  Rb8 {[%clk 0:01:26]} 18. bxc8=Q {[%clk 0:02:16]}  Rxb1 {[%clk 0:01:23]} 19. Kf2 {[%clk 0:01:43]}  Rxd1 {[%clk 0:01:22]} 20. Rxd1 {[%clk 0:01:44]}  Kh7 {[%clk 0:01:12]} 21. Qxc5 {[%clk 0:01:38]}  a4 {[%clk 0:01:05]} 22. Qb4 {[%clk 0:01:27]}  a3 {[%clk 0:00:55]} 23. Nc3 {[%clk 0:01:20]}  Qc2 {[%clk 0:00:35]} 24. Qxa3 {[%clk 0:01:14]}  Nc7 {[%clk 0:00:35]} 25. Rc1 {[%clk 0:00:59]}  Qd2 {[%clk 0:00:35]} 26. Rd1 {[%clk 0:00:59]}  Qc2 {[%clk 0:00:36]} 27. Qc1 {[%clk 0:00:59]}  Qb3 {[%clk 0:00:36]} 28. Qe3 {[%clk 0:00:56]}  Ne6 {[%clk 0:00:33]} 29. Nd5 {[%clk 0:00:53]}  Qb8 {[%clk 0:00:33]} 30. Nf6+ {[%clk 0:00:48]}  Bxf6 {[%clk 0:00:31]} 31. gxf6 {[%clk 0:00:49]}  Nd4 {[%clk 0:00:25]} 32. f4 {[%clk 0:00:30]}  Re8 {[%clk 0:00:24]} 33. f5 {[%clk 0:00:27]}  Qd6 {[%clk 0:00:11]} 34. fxg6+ {[%clk 0:00:26]}  Kg8 {[%clk 0:00:10]} 35. gxf7+ {[%clk 0:00:25]}  Kxf7 {[%clk 0:00:10]} 36. Bxh5+ {[%clk 0:00:24]}  Kxf6 {[%clk 0:00:06]} 37. Qh6+ {[%clk 0:00:23]} 1-0


[Site "https://www.chess.com"]

[Event "Titled Tuesday Blitz November 14 Late 2023"]
[White "Brodsky, David"]
[Black "Ozates, Tuna"]
[WhiteFideId "2073250"]
[BlackFideId "6354521"]
[WhiteElo "2786"]
[BlackElo "2558"]
[Result "1-0"]
[Round "6"]
[TimeControl "180+1"]
[Date "2023.11.14"]
[WhiteClock "0:00:42"]
[BlackClock "0:00:10"]
[Board "44"]

1. d4 {[%clk 0:03:00]}  Nf6 {[%clk 0:02:59]} 2. Nf3 {[%clk 0:03:00]}  e6 {[%clk 0:02:58]} 3. Bf4 {[%clk 0:03:00]}  b6 {[%clk 0:02:55]} 4. e3 {[%clk 0:02:59]}  Bb7 {[%clk 0:02:56]} 5. Nbd2 {[%clk 0:03:00]}  Be7 {[%clk 0:02:56]} 6. Bd3 {[%clk 0:02:59]}  d5 {[%clk 0:02:55]} 7. O-O {[%clk 0:02:59]}  O-O {[%clk 0:02:55]} 8. c3 {[%clk 0:02:58]}  Nbd7 {[%clk 0:02:52]} 9. a4 {[%clk 0:02:57]}  a6 {[%clk 0:02:52]} 10. a5 {[%clk 0:02:56]}  b5 {[%clk 0:02:51]} 11. b4 {[%clk 0:02:53]}  Ne4 {[%clk 0:02:51]} 12. Qc2 {[%clk 0:02:47]}  f5 {[%clk 0:02:51]} 13. Ne5 {[%clk 0:02:36]}  Nxe5 {[%clk 0:02:50]} 14. Bxe5 {[%clk 0:02:35]}  Bd6 {[%clk 0:02:46]} 15. Nb3 {[%clk 0:02:27]}  Bxe5 {[%clk 0:02:20]} 16. dxe5 {[%clk 0:02:26]}  d4 {[%clk 0:02:20]} 17. exd4 {[%clk 0:01:54]}  Qh4 {[%clk 0:02:03]} 18. f3 {[%clk 0:01:50]}  Ng5 {[%clk 0:02:00]} 19. Nc5 {[%clk 0:01:49]}  Bd5 {[%clk 0:02:00]} 20. f4 {[%clk 0:01:41]}  Nf7 {[%clk 0:01:42]} 21. c4 {[%clk 0:01:38]}  bxc4 {[%clk 0:01:40]} 22. Bxc4 {[%clk 0:01:39]}  Rfd8 {[%clk 0:01:27]} 23. Nxe6 {[%clk 0:01:33]}  Bxe6 {[%clk 0:01:24]} 24. Bxe6 {[%clk 0:01:33]}  Rxd4 {[%clk 0:01:25]} 25. Qxc7 {[%clk 0:01:17]}  Rf8 {[%clk 0:01:24]} 26. Rad1 {[%clk 0:01:13]}  Rxd1 {[%clk 0:01:09]} 27. Rxd1 {[%clk 0:01:14]}  h6 {[%clk 0:00:41]} 28. g3 {[%clk 0:01:12]}  Qh5 {[%clk 0:00:39]} 29. Rd7 {[%clk 0:01:11]}  Qe2 {[%clk 0:00:32]} 30. Qc4 {[%clk 0:00:56]}  Qe1+ {[%clk 0:00:28]} 31. Kg2 {[%clk 0:00:56]}  Kh7 {[%clk 0:00:17]} 32. Bxf7 {[%clk 0:00:49]}  Rc8 {[%clk 0:00:10]} 33. Bg6+ {[%clk 0:00:42]} 1-0


[Site "https://www.chess.com"]

[Event "Titled Tuesday Blitz November 14 Late 2023"]
[White "Jovic, Stanoje"]
[Black "Rohan, Ahuja"]
[WhiteFideId "905020"]
[BlackFideId "5090598"]
[WhiteElo "2528"]
[BlackElo "2703"]
[Result "1/2-1/2"]
[Round "6"]
[TimeControl "180+1"]
[Date "2023.11.14"]
[WhiteClock "0:00:29"]
[BlackClock "0:00:08"]
[Board "50"]

1. c4 {[%clk 0:03:00]}  g6 {[%clk 0:02:59]} 2. g3 {[%clk 0:03:00]}  c5 {[%clk 0:02:58]} 3. Bg2 {[%clk 0:03:00]}  Bg7 {[%clk 0:02:59]} 4. Nc3 {[%clk 0:03:00]}  Nc6 {[%clk 0:02:59]} 5. Nf3 {[%clk 0:03:00]}  d6 {[%clk 0:02:52]} 6. O-O {[%clk 0:03:00]}  e6 {[%clk 0:02:50]} 7. e3 {[%clk 0:02:57]}  Nge7 {[%clk 0:02:46]} 8. d4 {[%clk 0:02:57]}  O-O {[%clk 0:02:46]} 9. dxc5 {[%clk 0:02:57]}  dxc5 {[%clk 0:02:47]} 10. Qxd8 {[%clk 0:02:57]}  Rxd8 {[%clk 0:02:48]} 11. Na4 {[%clk 0:02:55]}  b6 {[%clk 0:02:44]} 12. Bd2 {[%clk 0:02:40]}  Ba6 {[%clk 0:02:19]} 13. Rac1 {[%clk 0:02:37]}  Rd7 {[%clk 0:02:16]} 14. b3 {[%clk 0:02:30]}  Rad8 {[%clk 0:02:15]} 15. Bc3 {[%clk 0:02:27]}  f6 {[%clk 0:02:05]} 16. h4 {[%clk 0:02:20]}  h6 {[%clk 0:02:04]} 17. g4 {[%clk 0:02:15]}  Bb7 {[%clk 0:01:53]} 18. g5 {[%clk 0:02:13]}  hxg5 {[%clk 0:01:50]} 19. hxg5 {[%clk 0:02:13]}  f5 {[%clk 0:01:50]} 20. Bxg7 {[%clk 0:02:06]}  Kxg7 {[%clk 0:01:50]} 21. Nc3 {[%clk 0:02:05]}  e5 {[%clk 0:01:22]} 22. Rfd1 {[%clk 0:02:02]}  e4 {[%clk 0:01:20]} 23. Ne1 {[%clk 0:01:50]}  Ne5 {[%clk 0:01:03]} 24. Rxd7 {[%clk 0:01:45]}  Rxd7 {[%clk 0:01:04]} 25. Rd1 {[%clk 0:01:39]}  Rxd1 {[%clk 0:01:04]} 26. Nxd1 {[%clk 0:01:39]}  Nf7 {[%clk 0:01:05]} 27. f4 {[%clk 0:01:37]}  exf3 {[%clk 0:01:06]} 28. Bxf3 {[%clk 0:01:36]}  Bc8 {[%clk 0:01:06]} 29. Nc3 {[%clk 0:01:35]}  Nxg5 {[%clk 0:01:06]} 30. Bg2 {[%clk 0:01:22]}  Bd7 {[%clk 0:01:00]} 31. Nd3 {[%clk 0:01:20]}  Kf6 {[%clk 0:00:59]} 32. Kf2 {[%clk 0:01:19]}  Ne6 {[%clk 0:00:59]} 33. a3 {[%clk 0:01:11]}  g5 {[%clk 0:00:50]} 34. b4 {[%clk 0:01:10]}  g4 {[%clk 0:00:27]} 35. Nd5+ {[%clk 0:01:08]}  Kf7 {[%clk 0:00:17]} 36. Ne5+ {[%clk 0:01:08]}  Ke8 {[%clk 0:00:14]} 37. Nf6+ {[%clk 0:01:07]}  Kd8 {[%clk 0:00:15]} 38. Nfxd7 {[%clk 0:01:05]}  f4 {[%clk 0:00:16]} 39. Bd5 {[%clk 0:01:02]}  fxe3+ {[%clk 0:00:16]} 40. Kxe3 {[%clk 0:01:01]}  Nf5+ {[%clk 0:00:17]} 41. Kf2 {[%clk 0:01:00]}  cxb4 {[%clk 0:00:14]} 42. axb4 {[%clk 0:00:58]}  Ned4 {[%clk 0:00:13]} 43. c5 {[%clk 0:00:54]}  g3+ {[%clk 0:00:13]} 44. Kg2 {[%clk 0:00:52]}  Ne3+ {[%clk 0:00:13]} 45. Kxg3 {[%clk 0:00:52]}  Nxd5 {[%clk 0:00:14]} 46. cxb6 {[%clk 0:00:49]}  axb6 {[%clk 0:00:15]} 47. Kf2 {[%clk 0:00:44]}  b5 {[%clk 0:00:13]} 48. Nc5 {[%clk 0:00:41]}  Nxb4 {[%clk 0:00:12]} 49. Ke3 {[%clk 0:00:37]}  Nf5+ {[%clk 0:00:10]} 50. Kd2 {[%clk 0:00:35]}  Nd5 {[%clk 0:00:10]} 51. Kc2 {[%clk 0:00:34]}  Nd4+ {[%clk 0:00:10]} 52. Kb2 {[%clk 0:00:33]}  Kc7 {[%clk 0:00:10]} 53. Ncd3 {[%clk 0:00:33]}  Kd6 {[%clk 0:00:10]} 54. Ng4 {[%clk 0:00:32]}  Kc6 {[%clk 0:00:10]} 55. Ngf2 {[%clk 0:00:31]}  Kb6 {[%clk 0:00:10]} 56. Ne4 {[%clk 0:00:31]}  Ka5 {[%clk 0:00:10]} 57. Nd6 {[%clk 0:00:31]}  Kb6 {[%clk 0:00:08]} 58. Nxb5 {[%clk 0:00:31]}  Kxb5 {[%clk 0:00:08]} 59. Ne5 {[%clk 0:00:29]}  Kb4 {[%clk 0:00:08]} 60. Nc6+ {[%clk 0:00:29]}  Nxc6 {[%clk 0:00:08]} 1/2-1/2


[Site "https://www.chess.com"]